Service area,Service sub division,TVBC Service,Expense type,Detailed expense type,TVBC account code,Date Paid,Transaction Reference, Nett Value ,Supplier Name
Cultural & Related,Culture & Heritage,Community and Leisure ,Supplies & Services,Catering,Non-Contract Catering,16/01/2014,114910,419.51,3663
Cultural & Related,Culture & Heritage,Community and Leisure ,Supplies & Services,Catering,Non-Contract Catering,09/01/2014,114611,272.01,3663
Cultural & Related,Culture & Heritage,Community and Leisure ,Supplies & Services,Catering,Catering,09/01/2014,114611,153.91,3663
Cultural & Related,Culture & Heritage,Community and Leisure ,Supplies & Services,Catering,Caf� Catering supplies,09/01/2014,114611,66.86,3663
Cultural & Related,Culture & Heritage,Community and Leisure ,Supplies & Services,Catering,Caf� Catering supplies,16/01/2014,114910,59.88,3663
Cultural & Related,Culture & Heritage,Community and Leisure ,Premises related Expenditure,Cleaning and domestic supplies,Cleaning Materials-Purchases,16/01/2014,114910,50.32,3663
Cultural & Related,Culture & Heritage,Community and Leisure ,Supplies & Services,Catering,Caf�/ bar consumables,09/01/2014,114611,12.47,3663
Cultural & Related,Culture & Heritage,Community and Leisure ,Premises related Expenditure,Cleaning and domestic supplies,Cleaning Materials-Purchases,09/01/2014,114611,4.99,3663
Cultural & Related,Culture & Heritage,Community and Leisure ,Supplies & Services,Catering,Caf�/ bar consumables,16/01/2014,114910,2.29,3663
Cultural & Related,Recreation & Sport,Community and Leisure ,Supplies & Services,Services,Professional Fees,02/01/2014,112950,"1,925.00",11kbw
Environmental & Regulatory,Street Cleansing (not chargeable to Highways),Environmental,Employees,Indirect Employee Expenses,Agency Staff - Waged Posts,16/01/2014,115229,"1,505.16",365 Supply Ltd
Environmental & Regulatory,Street Cleansing (not chargeable to Highways),Environmental,Employees,Indirect Employee Expenses,Agency Staff - Waged Posts,16/01/2014,114803,"1,400.95",365 Supply Ltd
Environmental & Regulatory,Waste management,Environmental,Employees,Indirect Employee Expenses,Agency Staff - Waged Posts,30/01/2014,116268,"1,284.18",365 Supply Ltd
Environmental & Regulatory,Waste management,Environmental,Employees,Indirect Employee Expenses,Agency Staff - Waged Posts,30/01/2014,116675,991.17,365 Supply Ltd
Environmental & Regulatory,Waste management,Environmental,Employees,Indirect Employee Expenses,Agency Staff - Waged Posts,16/01/2014,115227,713.34,365 Supply Ltd
Environmental & Regulatory,Waste management,Environmental,Employees,Indirect Employee Expenses,Agency Staff - Waged Posts,16/01/2014,114802,629.4,365 Supply Ltd
Environmental & Regulatory,Waste management,Environmental,Employees,Indirect Employee Expenses,Agency Staff - Waged Posts,23/01/2014,114067,617.48,365 Supply Ltd
Housing Services,"Housing strategy, advice and enabling",Housing and Environmental Health ,Supplies & Services,Communications & Computing,Computer Software,09/01/2014,113978,"11,625.00",Abritas Ltd
Cultural & Related,Culture & Heritage,Community and Leisure ,Supplies & Services,"Equipment, Furniture & Materials",Purchase Equip + Materials,16/01/2014,115133,"2,155.75",Abstract Avr Ltd
Environmental & Regulatory,Community Safety,Community and Leisure ,Transport Related Expenditure,Direct Transport Costs,Repair Materials,23/01/2014,115421,853.98,Adams Morey Ltd
Central Services to the Public,Management & Support Services,Estates and Economic Development ,Premises related Expenditure,Repairs Alterations & Maintenance of Buildings,Planned Maintenance - Non Est,23/01/2014,115909,485,Alarms & Electrical (Devizes) Ltd
Cultural & Related,Recreation & Sport,Community and Leisure ,Third Party Payments,Private contractors,Main Contractor Costs,30/01/2014,116596,"1,277.00",Personal data - Data Protection Act 1998
Cultural & Related,Open Spaces,Community and Leisure ,Premises related Expenditure,Grounds Maintenance Costs,Gm - Additional Works,30/01/2014,116536,651,Personal data - Data Protection Act 1998
Cultural & Related,Open Spaces,Community and Leisure ,Premises related Expenditure,Grounds Maintenance Costs,Gm - Additional Works,30/01/2014,116536,375,Personal data - Data Protection Act 1998
Environmental & Regulatory,Street Cleansing (not chargeable to Highways),Environmental,Supplies & Services,"Printing, Stationery & General Office Expenses",Training Courses,09/01/2014,114653,"1,154.00",Allied Driving Schools Ltd
Central Services to the Public,Local Tax Collection,Revenues,Supplies & Services,Miscellaneous Expenses,All Pay Fees,16/01/2014,115201,"1,548.77",Allpay Limited
Central Services to the Public,Management & Support Services,Estates and Economic Development ,Third Party Payments,Other Establishments,Private Contractors,16/01/2014,115564,"15,060.60",Anchor Pipework Ltd
Central Services to the Public,Management & Support Services,Estates and Economic Development ,Third Party Payments,Other Establishments,Private Contractors,16/01/2014,115552,"11,000.00",Andover Glass Works Ltd
Central Services to the Public,Management & Support Services,Estates and Economic Development ,Supplies & Services,"Equipment, Furniture & Materials",Purchase Materials (Job Cost),02/01/2014,114049,"2,346.05",Andover Glass Works Ltd
Central Services to the Public,Management & Support Services,Estates and Economic Development ,Third Party Payments,Other Establishments,Private Contractors,16/01/2014,115541,965.74,Andover Glass Works Ltd
"Highways, Roads & Transport",Public Transport,Plan Pol & Transport,Third Party Payments,Transport Operators in Respect of Concessionary Fares,Voluntary Orgs Reimbursement,23/01/2014,116111,"1,980.25",Andover Neighbourcare
"Highways, Roads & Transport",Public Transport,Plan Pol & Transport,Third Party Payments,Transport Operators in Respect of Concessionary Fares,Voluntary Orgs Reimbursement,30/01/2014,116518,"1,779.00",Andover Neighbourcare
"Highways, Roads & Transport",Public Transport,Plan Pol & Transport,Third Party Payments,Transport Operators in Respect of Concessionary Fares,Voluntary Orgs Reimbursement,09/01/2014,114634,"1,475.50",Andover Neighbourcare
Environmental & Regulatory,Regulatory Services,Housing and Environmental Health ,Supplies & Services,Miscellaneous Expenses,Kennel fees,23/01/2014,115588,834,Anton Vets Ltd
Planning & Development,Development Control,Planning & Building,Supplies & Services,Miscellaneous Expenses,Planning Appeal Costs,16/01/2014,114825,"2,472.00",Appleton Group Bristol
Central Services to the Public,Management & Support Services,Environmental,Supplies & Services,"Clothes, Uniforms & Laundry",Clothing + Uniforms,30/01/2014,116924,563.07,Arco Ltd
Central Services to the Public,Management & Support Services,Estates and Economic Development ,Transport Related Expenditure,Contract Hire and Operating Leases,Officer lease cars,09/01/2014,114630,"4,659.64",Arnold Clark Finance Ltd
Central Services to the Public,Management & Support Services,Legal & Democratic,Transport Related Expenditure,Contract Hire and Operating Leases,Officer lease cars,09/01/2014,114628,"4,549.21",Arnold Clark Finance Ltd
Planning & Development,Planning Policy,Plan Pol & Transport,Transport Related Expenditure,Contract Hire and Operating Leases,Officer lease cars,09/01/2014,114629,"3,675.72",Arnold Clark Finance Ltd
Planning & Development,Building Control,Planning & Building,Transport Related Expenditure,Contract Hire and Operating Leases,Officer lease cars,30/01/2014,116091,"3,377.69",Arnold Clark Finance Ltd
Central Services to the Public,Management & Support Services,IT,Support Services,IT,IT software licences,15/01/2014,115126,"8,000.00",Astech Consultants Limited
Planning & Development,Economic Development,Estates and Economic Development ,Supplies & Services,Grants & Subscriptions,Subscriptions,23/01/2014,116108,495,Atcm
Planning & Development,Economic Development,Estates and Economic Development ,Supplies & Services,"Printing, Stationery & General Office Expenses",Training Courses,23/01/2014,115398,720,Atlantic Zieser Ltd
Environmental & Regulatory,Waste management,Environmental,Transport Related Expenditure,Direct Transport Costs,Tyres,23/01/2014,115595,"1,721.46",Ats Euromaster Limited
Cultural & Related,Open Spaces,Environmental,Transport Related Expenditure,Direct Transport Costs,Tyres,23/01/2014,115595,"1,710.15",Ats Euromaster Limited
Environmental & Regulatory,Street Cleansing (not chargeable to Highways),Environmental,Transport Related Expenditure,Direct Transport Costs,Tyres,23/01/2014,115595,526,Ats Euromaster Limited
Environmental & Regulatory,Waste management,Environmental,Transport Related Expenditure,Direct Transport Costs,Tyres,23/01/2014,115595,363.48,Ats Euromaster Limited
Central Services to the Public,Management & Support Services,Estates and Economic Development ,Transport Related Expenditure,Direct Transport Costs,Tyres,23/01/2014,115595,179.82,Ats Euromaster Limited
Planning & Development,Development Control,Planning & Building,Supplies & Services,Services,Project Consultancy - Policy,08/01/2014,114598,650,Aylesbury Vale District Council
Central Services to the Public,Management & Support Services,Estates and Economic Development ,Supplies & Services,"Equipment, Furniture & Materials",Purchase Equip + Materials,16/01/2014,115534,"1,028.20",Baba Trading Ltd
Cultural & Related,Culture & Heritage,Community and Leisure ,Supplies & Services,Miscellaneous Expenses,Booking Of Acts,09/01/2014,114649,"3,615.00",Ballet Theatre Uk
External Trading Accounts,Industrial Estates,Estates and Economic Development ,Supplies & Services,Miscellaneous Expenses,Waste Collection,23/01/2014,115599,495.5,Basingstoke Skip Hire & Sthrn Waste Mgt Ltd
Cultural & Related,Culture & Heritage,Community and Leisure ,Supplies & Services,Miscellaneous Expenses,Booking Of Acts,09/01/2014,114797,"1,341.25",Belshazzar'S Feast
Environmental & Regulatory,Regulatory Services,Housing and Environmental Health ,Supplies & Services,Grants and subscriptions,Capital Grants,09/01/2014,114945,"4,145.00",Bentley Mobility Services
Planning & Development,Building Control,Planning & Building,Supplies & Services,Grants & Subscriptions,Subscriptions,09/01/2014,114948,"1,172.26",Bm Trada
Central Services to the Public,Management & Support Services,Estates and Economic Development ,Third Party Payments,Other Establishments,Private Contractors,23/01/2014,116257,"1,260.00",Bournemouth White Lining Ltd
Planning & Development,Economic Development,Estates and Economic Development ,Supplies & Services,"Printing, Stationery & General Office Expenses",Training Courses,02/01/2014,112945,"5,250.00",Bowyer Engineering Ltd
Central services to the public,"General Grants, Bequests and Donations",Housing and Environmental Health ,Supplies & Services,Grants and subscriptions,Capital Grants,09/01/2014,114947,"8,500.00",Braishfield Parish Council
"Highways, Roads & Transport",Parking Services,Plan Pol & Transport,Supplies & Services,Grants & Subscriptions,Subscriptions,02/01/2014,114069,619,British Parking Association
Central Services to the Public,Management & Support Services,IT,Supplies & Services,Communications & Computing,Software Maintenance,16/01/2014,115380,"2,523.96",Cable & Wireless Uk
Environmental & Regulatory,Waste management,Environmental,Supplies & Services,Miscellaneous Expenses,Recycling Campaign,23/01/2014,113678,660,Cammegh Davies Fleming
Environmental & Regulatory,Waste management,Environmental,Supplies & Services,Miscellaneous Expenses,Design Fees,16/01/2014,115192,280,Cammegh Davies Fleming
Environmental & Regulatory,Waste management,Environmental,Supplies & Services,"Printing, Stationery & General Office Expenses",External Printing,16/01/2014,115192,271,Cammegh Davies Fleming
Cultural & Related,Culture & Heritage,Community and Leisure ,Supplies & Services,Catering,Non-Contract Catering,23/01/2014,115428,"1,104.15",Carlsberg Uk Ltd
Cultural & Related,Culture & Heritage,Community and Leisure ,Supplies & Services,Catering,Non-Contract Catering,30/01/2014,116558,"1,099.80",Carlsberg Uk Ltd
Cultural & Related,Culture & Heritage,Community and Leisure ,Supplies & Services,Catering,Non-Contract Catering,09/01/2014,114614,854.77,Carlsberg Uk Ltd
Cultural & Related,Culture & Heritage,Community and Leisure ,Supplies & Services,Catering,Non-Contract Catering,09/01/2014,114007,562.41,Carlsberg Uk Ltd
Cultural & Related,Culture & Heritage,Community and Leisure ,Supplies & Services,Catering,Non-Contract Catering,30/01/2014,115932,484.78,Carlsberg Uk Ltd
Cultural & Related,Culture & Heritage,Community and Leisure ,Supplies & Services,Catering,Caf�/ bar consumables,09/01/2014,114614,11.4,Carlsberg Uk Ltd
Cultural & Related,Culture & Heritage,Community and Leisure ,Supplies & Services,Catering,Caf�/ bar consumables,23/01/2014,115428,5,Carlsberg Uk Ltd
Cultural & Related,Culture & Heritage,Community and Leisure ,Supplies & Services,Grants & Subscriptions,Donations,30/01/2014,116564,500,Personal data - Data Protection Act 1998
Cultural & Related,Culture & Heritage,Community and Leisure ,Supplies & Services,Grants & Subscriptions,Donations,30/01/2014,116560,500,Chris Brammall Limited
Central Services to the Public,Management & Support Services,Estates and Economic Development ,Third Party Payments,Other Establishments,Private Contractors,30/01/2014,116601,438.69,Churches
Central Services to the Public,Management & Support Services,Finance,Supplies & Services,"Printing, Stationery & General Office Expenses",Written Media,09/01/2014,114153,660.25,Cipfa
Cultural & Related,Culture & Heritage,Community and Leisure ,Supplies & Services,Grants & Subscriptions,Donations,30/01/2014,116559,500,Clare Bigger Sculptures Ltd
Central Services to the Public,Management & Support Services,Estates and Economic Development ,Third Party Payments,Other Establishments,Private Contractors,23/01/2014,115989,"1,467.50",Clearwater 2010 Ltd
Central Services to the Public,Management & Support Services,Estates and Economic Development ,Third Party Payments,Other Establishments,Private Contractors,23/01/2014,115988,"1,323.50",Clearwater 2010 Ltd
Central Services to the Public,Management & Support Services,Finance,Employees,Indirect Employee Expenses,Agency Staff - Waged Posts,09/01/2014,114798,491.8,Cma Financial Recruitment Ltd
Central Services to the Public,Management & Support Services,Finance,Employees,Indirect Employee Expenses,Agency Staff - Waged Posts,16/01/2014,115165,491.8,Cma Financial Recruitment Ltd
Central Services to the Public,Management & Support Services,Finance,Employees,Indirect Employee Expenses,Agency Staff - Waged Posts,23/01/2014,115940,491.8,Cma Financial Recruitment Ltd
Central Services to the Public,Management & Support Services,Estates and Economic Development ,Premises related Expenditure,Repairs Alterations & Maintenance of Buildings,Building Maint - Non Estates,30/01/2014,116813,"7,130.08",Cofely Ltd
Central Services to the Public,Management & Support Services,Estates and Economic Development ,Premises related Expenditure,Repairs Alterations & Maintenance of Buildings,Planned Maintenance - Non Est,16/01/2014,115537,672.83,Cofely Ltd
Central Services,Corporate & Democratic Core,Corporate & Democratic,Supplies & Services,Services,Professional Adv. - Employment,09/01/2014,114647,833.33,Coffin Mew Llp
Central Services,Corporate & Democratic Core,Corporate & Democratic,Supplies & Services,Services,Professional Adv. - Employment,30/01/2014,116530,833.33,Coffin Mew Llp
Central Services to the Public,Management & Support Services,Plan Pol & Transport,Premises related Expenditure,Repairs Alterations & Maintenance of Buildings,General Repairs,16/01/2014,113518,"34,265.80",Colas Ltd
Central Services to the Public,Management & Support Services,Plan Pol & Transport,Premises related Expenditure,Repairs Alterations & Maintenance of Buildings,General Repairs,15/01/2014,114810,"27,002.94",Colas Ltd
Central Services to the Public,Management & Support Services,Plan Pol & Transport,Premises related Expenditure,Repairs Alterations & Maintenance of Buildings,General Repairs,23/01/2014,115139,"23,522.21",Colas Ltd
Central Services to the Public,Management & Support Services,Plan Pol & Transport,Premises related Expenditure,Repairs Alterations & Maintenance of Buildings,General Repairs,16/01/2014,113527,"10,009.34",Colas Ltd
Planning & Development,Development Control,Planning & Building,Supplies & Services,Miscellaneous Expenses,Planning Appeal Costs,30/01/2014,116291,"3,010.00",Cornerstone Barristers
Planning & Development,Development Control,Planning & Building,Supplies & Services,Miscellaneous Expenses,Planning Appeal Costs,23/01/2014,115869,585,Cornerstone Barristers
Environmental & Regulatory,Waste management,Environmental,Supplies & Services,"Equipment, Furniture & Materials",Purchase Equip + Materials,23/01/2014,116107,"1,875.00",Craemer Uk Ltd
Cultural & Related,Open Spaces,Environmental,Supplies & Services,Communications & Computing,Telephone Tracking System,23/01/2014,115864,195,Ctrack Uk Limited
Environmental & Regulatory,Street Cleansing (not chargeable to Highways),Environmental,Supplies & Services,Communications & Computing,Telephone Tracking System,23/01/2014,115864,143,Ctrack Uk Limited
Environmental & Regulatory,Waste management,Environmental,Supplies & Services,Communications & Computing,Telephone Tracking System,23/01/2014,115864,117,Ctrack Uk Limited
Central Services to the Public,Management & Support Services,Environmental,Supplies & Services,Communications & Computing,Telephone Tracking System,23/01/2014,115864,19.5,Ctrack Uk Limited
Environmental & Regulatory,Waste management,Environmental,Supplies & Services,Communications & Computing,Telephone Tracking System,23/01/2014,115864,13,Ctrack Uk Limited
Central Services to the Public,Management & Support Services,Estates and Economic Development ,Supplies & Services,Communications & Computing,Telephone Tracking System,23/01/2014,115864,12.5,Ctrack Uk Limited
Environmental & Regulatory,Regulatory Services,Estates and Economic Development ,Supplies & Services,Communications & Computing,Telephone Tracking System,23/01/2014,115864,5,Ctrack Uk Limited
Central Services to the Public,Management & Support Services,Estates and Economic Development ,Supplies & Services,"Equipment, Furniture & Materials",Purchase Materials (Job Cost),16/01/2014,115523,456.32,D Pritchett (Tipper) Hire & Aggregates
Central Services to the Public,Management & Support Services,IT,Supplies & Services,Communications & Computing,Software Maintenance,09/01/2014,114595,498.75,Daisy Communications Ltd
Cultural & Related,Culture & Heritage,Community and Leisure ,Supplies & Services,Miscellaneous Expenses,Booking Of Acts,16/01/2014,115131,"1,200.00",David Shepherd Productions Ltd
Environmental & Regulatory,Street Cleansing (not chargeable to Highways),Environmental,Supplies & Services,"Printing, Stationery & General Office Expenses",Leasing rentals,30/01/2014,115146,790.88,De Lage Landen Leasing Ltd
Environmental & Regulatory,Waste management,Environmental,Transport Related Expenditure,Direct Transport Costs,Repair Materials,23/01/2014,115868,"1,197.73",Dennis Eagle Ltd
Environmental & Regulatory,Waste management,Environmental,Transport Related Expenditure,Direct Transport Costs,Repair Materials,09/01/2014,114794,"1,172.34",Dennis Eagle Ltd
Central Services to the Public,Management & Support Services,Environmental,Transport Related Expenditure,Direct Transport Costs,Repair Materials,30/01/2014,116087,910.73,Dennis Eagle Ltd
Central Services to the Public,Management & Support Services,Environmental,Transport Related Expenditure,Direct Transport Costs,Repair Materials,02/01/2014,113992,733,Dennis Eagle Ltd
Central Services to the Public,Management & Support Services,Environmental,Transport Related Expenditure,Direct Transport Costs,Repair Materials,02/01/2014,113877,672.54,Dennis Eagle Ltd
Environmental & Regulatory,Waste management,Environmental,Transport Related Expenditure,Direct Transport Costs,Repair Materials,23/01/2014,115167,505.25,Dennis Eagle Ltd
Environmental & Regulatory,Waste management,Environmental,Transport Related Expenditure,Direct Transport Costs,Repair Materials,02/01/2014,113976,449.61,Dennis Eagle Ltd
Environmental & Regulatory,Waste management,Environmental,Transport Related Expenditure,Direct Transport Costs,External Garages,23/01/2014,115868,380,Dennis Eagle Ltd
Central Services to the Public,Management & Support Services,Environmental,Transport Related Expenditure,Direct Transport Costs,Repair Materials,16/01/2014,115128,340.83,Dennis Eagle Ltd
Environmental & Regulatory,Waste management,Environmental,Transport Related Expenditure,Direct Transport Costs,Repair Materials,16/01/2014,115128,187.5,Dennis Eagle Ltd
"Highways, Roads & Transport",Parking Services,Plan Pol & Transport,Third Party Payments,Private contractors,Main Contractor Costs,02/01/2014,114159,"1,125.00",Designs For Lighting
Cultural & Related,Culture & Heritage,Community and Leisure ,Supplies & Services,Miscellaneous Expenses,Promotions / Special Events,23/01/2014,116251,"1,111.34",Dirty/Dc
Planning & Development,Economic Development,Estates and Economic Development ,Supplies & Services,"Printing, Stationery & General Office Expenses",Training Courses,02/01/2014,113985,661.2,Personal data - Data Protection Act 1998
Environmental & Regulatory,Regulatory Services,Housing and Environmental Health ,Supplies & Services,Grants and subscriptions,Capital Grants,02/01/2014,114495,"3,467.81",Dsl Installations
Environmental & Regulatory,Waste management,Environmental,Transport Related Expenditure,Direct Transport Costs,Licences,16/01/2014,2049,652.5,Dvla Swansea
Central Services to the Public,Management & Support Services,Estates and Economic Development ,Supplies & Services,"Equipment, Furniture & Materials",Purchase Materials (Job Cost),30/01/2014,116617,625,Edmundson Electrical Ltd
Central Services to the Public,Management & Support Services,Estates and Economic Development ,Third Party Payments,Other Establishments,Contract Catering,23/01/2014,116095,"1,959.07",Edwards And Ward Ltd
Central Services to the Public,Management & Support Services,Estates and Economic Development ,Third Party Payments,Other Establishments,Contract Catering,16/01/2014,113307,"1,918.40",Edwards And Ward Ltd
Central Services to the Public,Management & Support Services,Estates and Economic Development ,Third Party Payments,Other Establishments,Contract Catering,23/01/2014,116096,"1,918.40",Edwards And Ward Ltd
Central Services to the Public,Management & Support Services,Estates and Economic Development ,Third Party Payments,Other Establishments,Contract Catering,16/01/2014,114763,714.35,Edwards And Ward Ltd
Environmental & Regulatory,Street Cleansing (not chargeable to Highways),Environmental,Transport Related Expenditure,Direct Transport Costs,Repair Materials,23/01/2014,112795,-538.46,"Edwards Ford, Andover Ford"
Central Services to the Public,Elections,Legal & Democratic,Supplies & Services,Communications & Computing,Computer Software,16/01/2014,115437,"2,580.65",Electoral Reform Services
Environmental & Regulatory,Regulatory Services,Housing and Environmental Health ,Supplies & Services,Services,Project Consultancy - Policy,23/01/2014,116094,853.2,Environmental Scientifics Group Ltd
Environmental & Regulatory,Regulatory Services,Housing and Environmental Health ,Supplies & Services,Grants and subscriptions,Capital Grants,23/01/2014,116305,"1,846.00",Epw Construction
Environmental & Regulatory,Regulatory Services,Housing and Environmental Health ,Supplies & Services,Grants and subscriptions,Capital Grants,16/01/2014,115615,"1,043.00",Epw Construction
Central Services to the Public,Management & Support Services,IT,Supplies & Services,Services,Project Consultancy - Systems,09/01/2014,114045,995,Esri (Uk) Ltd
Environmental & Regulatory,Regulatory Services,Housing and Environmental Health ,Supplies & Services,Grants & Subscriptions,Subscriptions,09/01/2014,114594,853.34,Eurofins Environmental Testing Uk Ltd
Cultural & Related,Recreation & Sport,Community and Leisure ,Premises related Expenditure,Repairs Alterations & Maintenance of Buildings,Estates premises costs - AMP,09/01/2014,112917,"5,000.00",Evergreen Rabbit Control
Cultural & Related,Recreation & Sport,Community and Leisure ,Premises related Expenditure,Grounds Maintenance Costs,Gm - Additional Works,09/01/2014,112917,609,Evergreen Rabbit Control
Cultural & Related,Recreation & Sport,Community and Leisure ,Premises related Expenditure,Grounds Maintenance Costs,Gm - Additional Works,09/01/2014,112917,140,Evergreen Rabbit Control
Environmental & Regulatory,Waste management,Environmental,Supplies & Services,Miscellaneous Expenses,Recycling Bank Emptying,23/01/2014,115597,"6,281.41",Fcc Recycling (Uk) Ltd
Environmental & Regulatory,Waste management,Environmental,Supplies & Services,"Equipment, Furniture & Materials",Purchase Equip + Materials,30/01/2014,116546,"4,605.44",Fcc Recycling (Uk) Ltd
Central Services to the Public,Elections,Legal & Democratic,Supplies & Services,"Printing, Stationery & General Office Expenses",External Printing,23/01/2014,115883,670.3,Financial Data Management Plc
Planning & Development,Economic Development,Estates and Economic Development ,Supplies & Services,Grants & Subscriptions,Contributions,23/01/2014,115392,"3,500.00",First Partnership Ltd
Central Services to the Public,Management & Support Services,IT,Supplies & Services,Communications & Computing,Software Maintenance,09/01/2014,114776,"4,470.20",Fordway Solutions Ltd
Cultural & Related,Recreation & Sport,Community and Leisure ,Premises related Expenditure,Repairs Alterations & Maintenance of Buildings,Building Maint - Non Estates,16/01/2014,115414,"2,102.70",Founds (Uk) Ltd
Cultural & Related,Culture & Heritage,Community and Leisure ,Supplies & Services,Miscellaneous Expenses,Booking Of Acts,23/01/2014,115934,"1,850.00",Full House Productions
"Highways, Roads & Transport",Parking Services,Plan Pol & Transport,Supplies & Services,Services,Professional Fees,09/01/2014,114641,"4,754.79",G4s Cash Services (Uk) Ltd
"Highways, Roads & Transport",Parking Services,Plan Pol & Transport,Supplies & Services,Services,Professional Fees,23/01/2014,116110,"4,754.79",G4s Cash Services (Uk) Ltd
"Highways, Roads & Transport",Parking Services,Plan Pol & Transport,Supplies & Services,Services,Professional Fees,23/01/2014,116104,"3,110.52",G4s Cash Services (Uk) Ltd
"Highways, Roads & Transport",Parking Services,Plan Pol & Transport,Supplies & Services,Services,Professional Fees,09/01/2014,114635,"2,635.01",G4s Cash Services (Uk) Ltd
Central Services to the Public,Management & Support Services,Environmental,Transport Related Expenditure,Direct Transport Costs,Repair Materials,09/01/2014,114612,225.5,Geoff Easton Ltd T/A Autosmart
Cultural & Related,Open Spaces,Environmental,Transport Related Expenditure,Direct Transport Costs,Repair Materials,09/01/2014,114612,77,Geoff Easton Ltd T/A Autosmart
Environmental & Regulatory,Waste management,Environmental,Transport Related Expenditure,Direct Transport Costs,Repair Materials,09/01/2014,114612,70,Geoff Easton Ltd T/A Autosmart
Central Services to the Public,Management & Support Services,Environmental,Transport Related Expenditure,Direct Transport Costs,Workshop Consumables,09/01/2014,114612,51.5,Geoff Easton Ltd T/A Autosmart
Central Services to the Public,Management & Support Services,IT,Supplies & Services,Communications & Computing,Computer Hardware,23/01/2014,115393,683.95,Go2 Telecom
Cultural & Related,Open Spaces,Environmental,Transport Related Expenditure,Direct Transport Costs,External Garages,23/01/2014,115160,432.5,Greenshields Jcb Ltd
Cultural & Related,Open Spaces,Environmental,Transport Related Expenditure,Direct Transport Costs,Repair Materials,23/01/2014,115160,153.73,Greenshields Jcb Ltd
Cultural & Related,Open Spaces,Community and Leisure ,Premises related Expenditure,Repairs Alterations & Maintenance of Buildings,Estates premises costs - AMP,30/01/2014,116615,909.01,Gripdeck Uk Llp
Cultural & Related,Open Spaces,Community and Leisure ,Supplies & Services,"Equipment, Furniture & Materials",Purchase Equip + Materials,30/01/2014,116615,455.88,Gripdeck Uk Llp
Cultural & Related,Culture & Heritage,Community and Leisure ,Supplies & Services,Miscellaneous Expenses,Booking Of Acts,23/01/2014,116228,"1,801.33",Gta Music Agents
Central Services to the Public,Elections,Legal & Democratic,Supplies & Services,"Printing, Stationery & General Office Expenses",Written Media,02/01/2014,113968,863,Hammicks Legal Information Services
Cultural & Related,Culture & Heritage,Community and Leisure ,Third Party Payments,Other Local Authorities,Hampshire C C -Agency Servic,16/01/2014,115379,"80,000.00",Hampshire County Council
Cultural & Related,Recreation & Sport,Community and Leisure ,Supplies & Services,Miscellaneous Expenses,Promotions / Special Events,09/01/2014,114646,"5,125.00",Hampshire County Council
Planning & Development,Planning Policy,Plan Pol & Transport,Supplies & Services,Grants & Subscriptions,Grants,16/01/2014,114954,"1,513.11",Hampshire County Council
Planning & Development,Planning Policy,Plan Pol & Transport,Supplies & Services,Grants & Subscriptions,Grants,16/01/2014,114955,"1,513.11",Hampshire County Council
Planning & Development,Planning Policy,Plan Pol & Transport,Supplies & Services,Grants & Subscriptions,Grants,30/01/2014,115982,"1,513.11",Hampshire County Council
Cultural & Related,Tourism,Estates and Economic Development ,Supplies & Services,"Printing, Stationery & General Office Expenses",External Printing,30/01/2014,116810,500,Hampshire County Council
Central Services to the Public,Management & Support Services,Community and Leisure ,Supplies & Services,Grants & Subscriptions,Grants,23/01/2014,115215,500,Hampshire Police Authority
Cultural & Related,Culture & Heritage,Community and Leisure ,Supplies & Services,"Equipment, Furniture & Materials",Purchase Equip + Materials,16/01/2014,114779,"7,070.44",Hawthorn Theatrical Ltd
Environmental & Regulatory,Street Cleansing (not chargeable to Highways),Environmental,Transport Related Expenditure,Direct Transport Costs,Vehicles and Plant,30/01/2014,116253,"32,011.55",Haynes Of Maidstone T/A Haynes Ford
Environmental & Regulatory,Street Cleansing (not chargeable to Highways),Environmental,Transport Related Expenditure,Direct Transport Costs,Vehicles and Plant,30/01/2014,116254,"32,011.55",Haynes Of Maidstone T/A Haynes Ford
Environmental & Regulatory,Street Cleansing (not chargeable to Highways),Environmental,Supplies & Services,Grants and subscriptions,Capital Grants,30/01/2014,116252,"32,011.55",Haynes Of Maidstone T/A Haynes Ford
Central Services to the Public,Management & Support Services,Environmental,Transport Related Expenditure,Direct Transport Costs,Vehicles and Plant,30/01/2014,115213,"25,321.94",Haynes Of Maidstone T/A Haynes Ford
Cultural & Related,Open Spaces,Environmental,Transport Related Expenditure,Direct Transport Costs,Vehicles and Plant,23/01/2014,115942,"24,434.00",Haynes Of Maidstone T/A Haynes Ford
Cultural & Related,Open Spaces,Environmental,Transport Related Expenditure,Direct Transport Costs,Vehicles and Plant,23/01/2014,115945,"24,434.00",Haynes Of Maidstone T/A Haynes Ford
Cultural & Related,Open Spaces,Environmental,Transport Related Expenditure,Direct Transport Costs,Vehicles and Plant,23/01/2014,115947,"24,434.00",Haynes Of Maidstone T/A Haynes Ford
Cultural & Related,Open Spaces,Environmental,Transport Related Expenditure,Direct Transport Costs,Vehicles and Plant,23/01/2014,115948,"24,434.00",Haynes Of Maidstone T/A Haynes Ford
Cultural & Related,Open Spaces,Environmental,Transport Related Expenditure,Direct Transport Costs,Vehicles and Plant,23/01/2014,115950,"24,434.00",Haynes Of Maidstone T/A Haynes Ford
Cultural & Related,Open Spaces,Environmental,Transport Related Expenditure,Direct Transport Costs,Licences,23/01/2014,115942,275,Haynes Of Maidstone T/A Haynes Ford
Cultural & Related,Open Spaces,Environmental,Transport Related Expenditure,Direct Transport Costs,Licences,23/01/2014,115945,275,Haynes Of Maidstone T/A Haynes Ford
Cultural & Related,Open Spaces,Environmental,Transport Related Expenditure,Direct Transport Costs,Licences,23/01/2014,115947,275,Haynes Of Maidstone T/A Haynes Ford
Cultural & Related,Open Spaces,Environmental,Transport Related Expenditure,Direct Transport Costs,Licences,23/01/2014,115948,275,Haynes Of Maidstone T/A Haynes Ford
Cultural & Related,Open Spaces,Environmental,Transport Related Expenditure,Direct Transport Costs,Licences,23/01/2014,115950,275,Haynes Of Maidstone T/A Haynes Ford
Central Services to the Public,Management & Support Services,Environmental,Transport Related Expenditure,Direct Transport Costs,MOT Tests,30/01/2014,115213,275,Haynes Of Maidstone T/A Haynes Ford
Environmental & Regulatory,Street Cleansing (not chargeable to Highways),Environmental,Transport Related Expenditure,Direct Transport Costs,Licences,30/01/2014,116252,220,Haynes Of Maidstone T/A Haynes Ford
Environmental & Regulatory,Street Cleansing (not chargeable to Highways),Environmental,Transport Related Expenditure,Direct Transport Costs,Licences,30/01/2014,116253,220,Haynes Of Maidstone T/A Haynes Ford
Environmental & Regulatory,Street Cleansing (not chargeable to Highways),Environmental,Transport Related Expenditure,Direct Transport Costs,Licences,30/01/2014,116254,220,Haynes Of Maidstone T/A Haynes Ford
"Highways, Roads & Transport",Parking Services,Plan Pol & Transport,Supplies & Services,Services,Legal Fees,09/01/2014,114926,"1,220.00",Her Majestys Court Service
Cultural & Related,Open Spaces,Environmental,Supplies & Services,"Equipment, Furniture & Materials",Purchase Equip + Materials,30/01/2014,116573,875,Hillier Nurseries Limited
Central Services to the Public,Management & Support Services,Plan Pol & Transport,Supplies & Services,"Equipment, Furniture & Materials",Purchase Equip + Materials,23/01/2014,115979,"37,740.65",Hope & Clay Construction Ltd
Central Services to the Public,Local Tax Collection,Revenues,Supplies & Services,"Printing, Stationery & General Office Expenses",External Printing,09/01/2014,111683,532.5,Hound Envelopes Limited
Housing Services,Housing Benefits ,Revenues,Supplies & Services,"Printing, Stationery & General Office Expenses",External Printing,09/01/2014,111683,395.7,Hound Envelopes Limited
Environmental & Regulatory,Regulatory Services,Housing and Environmental Health ,Supplies & Services,Grants and subscriptions,Capital Grants,09/01/2014,114946,"1,348.03",Icm (Andover)
Environmental & Regulatory,Regulatory Services,Housing and Environmental Health ,Supplies & Services,Grants and subscriptions,Capital Grants,23/01/2014,116147,"1,297.40",Icm (Andover)
"Highways, Roads & Transport",Parking Services,Plan Pol & Transport,Supplies & Services,"Equipment, Furniture & Materials",Purchase Equip + Materials,02/01/2014,112431,495,Imperial Civil Enforcement Solutions
Central Services,Corporate & Democratic Core,Corporate & Democratic,Supplies & Services,Communications & Computing,Land Line Telephone Charges,30/01/2014,116529,936.77,Invicta Lifeline Ltd
Environmental & Regulatory,Waste management,Environmental,Supplies & Services,"Equipment, Furniture & Materials",Purchase Equip + Materials,16/01/2014,115417,"4,012.00",J & H M Dickson Ltd
Central Services to the Public,Management & Support Services,Chief Executive's,Supplies & Services,"Printing, Stationery & General Office Expenses",Training Courses,23/01/2014,115862,513.26,Personal data - Data Protection Act 1998
Environmental & Regulatory,Regulatory Services,Housing and Environmental Health ,Supplies & Services,Miscellaneous Expenses,Health And Safety,02/01/2014,113970,"3,850.00",Cornerstone Barristers
External Trading Accounts,Industrial Estates,Estates and Economic Development ,Third Party Payments,Private contractors,Main Contractor Costs,23/01/2014,116220,"108,411.04",Kier Facilities Services Ltd
Planning & Development,Community Development,Community and Leisure ,Supplies & Services,Grants & Subscriptions,Grants,23/01/2014,116302,500,King Edward Vii Memorial Hall
Cultural & Related,Open Spaces,Environmental,Supplies & Services,"Equipment, Furniture & Materials",Purchase Equip + Materials,16/01/2014,114808,"1,638.00",Kings Worthy Garden Machinery Ltd
Central Services to the Public,Management & Support Services,Environmental,Transport Related Expenditure,Direct Transport Costs,Repair Materials,09/01/2014,114795,573.2,Kings Worthy Garden Machinery Ltd
External Trading Accounts,Industrial Estates,Estates and Economic Development ,Premises related Expenditure,Rents,Rents,09/01/2014,113634,"21,719.25",Koopmans
External Trading Accounts,Industrial Estates,Estates and Economic Development ,Premises related Expenditure,Rents,Rents,09/01/2014,114616,"1,099.69",Koopmans
Central Services to the Public,Management & Support Services,Estates and Economic Development ,Supplies & Services,Services,Professional Fees,23/01/2014,115984,"5,950.00",Langstrath Consultancy
Central Services to the Public,Management & Support Services,Estates and Economic Development ,Supplies & Services,Services,Professional Fees,16/01/2014,115560,"2,150.00",Langstrath Consultancy
External Trading Accounts,Industrial Estates,Estates and Economic Development ,Supplies & Services,Services,Professional Fees,09/01/2014,114758,"1,950.00",Langstrath Consultancy
Central Services to the Public,Management & Support Services,Chief Executive's,Supplies & Services,"Printing, Stationery & General Office Expenses",Training Courses,16/01/2014,115388,750,Learning Pool Limited
Central Services to the Public,Management & Support Services,Chief Executive's,Supplies & Services,"Printing, Stationery & General Office Expenses",Training Courses,30/01/2014,115981,750,Learning Pool Limited
Central Services,Corporate & Democratic Core,Corporate & Democratic,Supplies & Services,"Printing, Stationery & General Office Expenses",Training Courses,23/01/2014,115590,500.1,Lgiu
Environmental & Regulatory,Regulatory Services,Housing and Environmental Health ,Supplies & Services,Grants and subscriptions,Capital Grants,15/01/2014,115447,"2,527.00",Lifestyle Solutions
Environmental & Regulatory,Regulatory Services,Housing and Environmental Health ,Supplies & Services,Grants and subscriptions,Capital Grants,02/01/2014,114494,"3,036.00",Liftech Systems (Se) Ltd
Cultural & Related,Culture & Heritage,Community and Leisure ,Supplies & Services,Miscellaneous Expenses,Booking Of Acts,16/01/2014,115434,833.33,Lisa Thomas Management
Central Services to the Public,Management & Support Services,Estates and Economic Development ,Supplies & Services,Services,Professional Fees,16/01/2014,115416,"4,750.00",London Clancy
Central Services to the Public,Management & Support Services,Environmental,Transport Related Expenditure,Direct Transport Costs,Repair Materials,09/01/2014,114765,"1,028.92",M D Services
Central Services to the Public,Management & Support Services,Environmental,Transport Related Expenditure,Direct Transport Costs,Workshop Consumables,23/01/2014,115140,359.31,M D Services
Central Services to the Public,Management & Support Services,Environmental,Transport Related Expenditure,Direct Transport Costs,Workshop Consumables,09/01/2014,114765,150.26,M D Services
Central Services to the Public,Management & Support Services,Environmental,Transport Related Expenditure,Direct Transport Costs,Repair Materials,23/01/2014,115140,133.86,M D Services
"Highways, Roads & Transport",Highways and roads - maintenance,Plan Pol & Transport,Premises related Expenditure,Repairs Alterations & Maintenance of Buildings,Highways Repairs,16/01/2014,114082,"1,510.50",Midland Signs (Leicester) Ltd
Cultural & Related,Culture & Heritage,Community and Leisure ,Supplies & Services,Miscellaneous Expenses,Booking Of Acts,16/01/2014,102185,500,Midnight Mango Ltd - Willie & The Bandits
Cultural & Related,Culture & Heritage,Community and Leisure ,Supplies & Services,Miscellaneous Expenses,Booking Of Acts,30/01/2014,116937,550,Moscow Drug Club
Planning & Development,Planning Policy,Plan Pol & Transport,Supplies & Services,Services,Project Consultancy - Policy,09/01/2014,114893,500,Nathaniel Lichfield & Partners
Central Services to the Public,Management & Support Services,Finance,Supplies & Services,"Printing, Stationery & General Office Expenses",Postage Costs,30/01/2014,116928,"5,000.00",Neopost Ltd
Central Services to the Public,Management & Support Services,IT,Supplies & Services,Services,Project Consultancy - Systems,16/01/2014,115195,"9,000.00",Neptune Consulting
Central Services to the Public,Management & Support Services,IT,Supplies & Services,Communications & Computing,Computer Hardware,30/01/2014,116085,"1,391.03",Neptune Consulting
Central Services to the Public,Management & Support Services,IT,Supplies & Services,Services,Project Consultancy - Systems,09/01/2014,114778,450,Neptune Consulting
Cultural & Related,Open Spaces,Environmental,Supplies & Services,"Equipment, Furniture & Materials",Purchase Equip + Materials,23/01/2014,115521,"3,216.50",New Forest Farm Machinery Ltd
Cultural & Related,Open Spaces,Environmental,Supplies & Services,"Equipment, Furniture & Materials",Purchase Equip + Materials,23/01/2014,115396,"1,892.79",New Forest Farm Machinery Ltd
Environmental & Regulatory,Waste management,Environmental,Supplies & Services,Miscellaneous Expenses,Advertising,23/01/2014,114651,228.6,Newsquest Southern
Central Services,Corporate & Democratic Core,Corporate & Democratic,Supplies & Services,Services,Coaches Fees,23/01/2014,114651,228.6,Newsquest Southern
Environmental & Regulatory,Regulatory Services,Housing and Environmental Health ,Supplies & Services,Grants and subscriptions,Capital Grants,30/01/2014,116940,"4,271.59",Nhp (Romsey) Ltd
Central Services to the Public,Local Tax Collection,Revenues,Supplies & Services,Communications & Computing,Computer Software,16/01/2014,115375,"12,500.00",Northgate Information Solutions Uk Ltd
Central Services to the Public,Local Tax Collection,Revenues,Supplies & Services,Communications & Computing,Software Maintenance,16/01/2014,115390,"2,200.00",Northgate Information Solutions Uk Ltd
Environmental & Regulatory,Waste management,Environmental,Supplies & Services,Communications & Computing,Computer Software,30/01/2014,116565,"1,500.00",Northgate Information Solutions Uk Ltd
Central Services to the Public,Local Tax Collection,Revenues,Supplies & Services,Communications & Computing,Software Maintenance,16/01/2014,115385,195.83,Northgate Information Solutions Uk Ltd
Central Services to the Public,Local Tax Collection,Revenues,Supplies & Services,Communications & Computing,Software Maintenance,16/01/2014,115385,122.4,Northgate Information Solutions Uk Ltd
Housing Services,Housing Benefits ,Revenues,Supplies & Services,Communications & Computing,Software Maintenance,16/01/2014,115385,122.4,Northgate Information Solutions Uk Ltd
Central Services to the Public,Local Tax Collection,Revenues,Supplies & Services,Communications & Computing,Software Maintenance,16/01/2014,115385,48.96,Northgate Information Solutions Uk Ltd
Central Services to the Public,Management & Support Services,IT,Supplies & Services,"Printing, Stationery & General Office Expenses",Training Courses,09/01/2014,114674,"3,750.00",Nuage Communications Ltd
Central Services to the Public,Management & Support Services,Estates and Economic Development ,Third Party Payments,Other Establishments,Private Contractors,16/01/2014,115550,"1,100.00",Nuserve Ltrd
Planning & Development,Economic Development,Estates and Economic Development ,Supplies & Services,"Printing, Stationery & General Office Expenses",Training Courses,29/01/2014,116112,"1,464.00",Oaktree Business Management Llp
Environmental & Regulatory,Street Cleansing (not chargeable to Highways),Environmental,Supplies & Services,Miscellaneous Expenses,Health And Safety,09/01/2014,114643,"2,622.00",Occupational Health Consultancy Ltd
Environmental & Regulatory,Waste management,Environmental,Supplies & Services,Miscellaneous Expenses,Health And Safety,09/01/2014,114643,937,Occupational Health Consultancy Ltd
Central Services to the Public,Management & Support Services,Environmental,Supplies & Services,Miscellaneous Expenses,Health And Safety,09/01/2014,114643,291,Occupational Health Consultancy Ltd
Central Services to the Public,Management & Support Services,Plan Pol & Transport,Supplies & Services,"Equipment, Furniture & Materials",Purchase Equip + Materials,30/01/2014,115903,"3,481.40",Openreach Bt
Central Services to the Public,Management & Support Services,Estates and Economic Development ,Third Party Payments,Other Establishments,Private Contractors,16/01/2014,115535,"1,869.07",Options Flooring Ltd
Central Services to the Public,Management & Support Services,IT,Support Services,IT,IT Hardware costs,02/01/2014,114044,"10,810.00",Oxygen Secure Systems
Central Services to the Public,Management & Support Services,IT,Supplies & Services,Miscellaneous Expenses,Miscellaneous Capital Expenses,02/01/2014,114044,"2,800.00",Oxygen Secure Systems
Environmental & Regulatory,Regulatory Services,Housing and Environmental Health ,Supplies & Services,Grants and subscriptions,Capital Grants,16/01/2014,115614,"3,876.57",P Welbourne-Jones Ltd
Environmental & Regulatory,Regulatory Services,Housing and Environmental Health ,Supplies & Services,Grants and subscriptions,Capital Grants,30/01/2014,116939,801.29,P Welbourne-Jones Ltd
Cultural & Related,Culture & Heritage,Community and Leisure ,Supplies & Services,Services,Tutors,16/01/2014,115137,810,Personal data - Data Protection Act 1998
"Highways, Roads & Transport",Parking Services,Plan Pol & Transport,Supplies & Services,Services,Professional Fees,30/01/2014,116553,"1,482.00",Patrol
"Highways, Roads & Transport",Parking Services,Plan Pol & Transport,Third Party Payments,Private contractors,Main Contractor Costs,02/01/2014,105309,901.2,Pc Pitchcare.Com
Planning & Development,Economic Development,Estates and Economic Development ,Supplies & Services,"Printing, Stationery & General Office Expenses",Training Courses,16/01/2014,114839,934.35,Perfect Bore Manufacturing Ltd
Cultural & Related,Tourism,Estates and Economic Development ,Supplies & Services,Grants & Subscriptions,Grants,16/01/2014,115397,700,Personal data - Data Protection Act 1998
Cultural & Related,Culture & Heritage,Community and Leisure ,Supplies & Services,"Equipment, Furniture & Materials",Purchase Equip + Materials,23/01/2014,115898,677,Peter Cox (Catering Equipment) Ltd
Environmental & Regulatory,Regulatory Services,Housing and Environmental Health ,Supplies & Services,Grants and subscriptions,Capital Grants,22/01/2014,116138,"2,272.57","Peter Martin, Plumbing & Carpentry"
Central Services to the Public,Management & Support Services,IT,Supplies & Services,Communications & Computing,Software Maintenance,23/01/2014,114952,"20,857.15",Phoenix Software Ltd
Central Services to the Public,Management & Support Services,IT,Support Services,IT,IT software licences,23/01/2014,114892,"15,000.00",Phoenix Software Ltd
Central Services to the Public,Management & Support Services,IT,Supplies & Services,Services,Project Consultancy - Systems,30/01/2014,114755,"4,800.00",Phoenix Software Ltd
Central Services to the Public,Management & Support Services,Legal & Democratic,Supplies & Services,Services,Removal Fees,23/01/2014,115415,"1,756.00",Pickfords Move Management Ltd
Central Services to the Public,Management & Support Services,IT,Supplies & Services,Services,Project Consultancy - Systems,09/01/2014,113114,"1,650.00",Pnl Tools Ltd
Central Services to the Public,Management & Support Services,IT,Supplies & Services,Communications & Computing,Software Maintenance,09/01/2014,113114,"1,093.98",Pnl Tools Ltd
Environmental & Regulatory,Street Cleansing (not chargeable to Highways),Environmental,Transport Related Expenditure,Direct Transport Costs,Licences,16/01/2014,2048,667.5,Post Office Ltd
Environmental & Regulatory,Regulatory Services,Housing and Environmental Health ,Supplies & Services,Grants and subscriptions,Capital Grants,09/01/2014,114942,"8,162.38",Prb Building Services
Environmental & Regulatory,Regulatory Services,Housing and Environmental Health ,Supplies & Services,Grants and subscriptions,Capital Grants,09/01/2014,114943,"3,000.00",Prb Building Services
Environmental & Regulatory,Regulatory Services,Housing and Environmental Health ,Supplies & Services,Grants and subscriptions,Capital Grants,30/01/2014,116922,"3,728.26",Prism Medical Uk
Cultural & Related,Open Spaces,Community and Leisure ,Premises related Expenditure,Grounds Maintenance Costs,Gm - Additional Works,16/01/2014,112432,"2,706.00",Purbeck Civil Engineering Limited
Cultural & Related,Open Spaces,Community and Leisure ,Premises related Expenditure,Repairs Alterations & Maintenance of Buildings,Estates premises costs - AMP,16/01/2014,112432,"2,000.00",Purbeck Civil Engineering Limited
Cultural & Related,Open Spaces,Environmental,Supplies & Services,"Equipment, Furniture & Materials",Purchase Equip + Materials,16/01/2014,114760,"1,600.00",Purbeck Civil Engineering Limited
Central Services to the Public,Management & Support Services,Estates and Economic Development ,Third Party Payments,Other Establishments,Private Contractors,16/01/2014,115540,"1,200.00",Purbeck Civil Engineering Limited
Central Services to the Public,Management & Support Services,Estates and Economic Development ,Third Party Payments,Other Establishments,Private Contractors,30/01/2014,116600,800,Purbeck Civil Engineering Limited
Planning & Development,Planning Policy,Plan Pol & Transport,Supplies & Services,Services,Project Consultancy - Policy,15/01/2014,115148,"9,493.00",Qa Research
Cultural & Related,Culture & Heritage,Community and Leisure ,Supplies & Services,Miscellaneous Expenses,Booking Of Acts,23/01/2014,115895,"2,312.00",Rbm
Cultural & Related,Culture & Heritage,Community and Leisure ,Supplies & Services,Miscellaneous Expenses,Booking Of Acts,16/01/2014,115219,"1,942.00",Rbm
Planning & Development,Development Control,Planning & Building,Supplies & Services,Miscellaneous Expenses,Planning Appeal Costs,23/01/2014,115863,"1,921.60",Reading Agricultural Consultants Ltd
Planning & Development,Development Control,Planning & Building,Supplies & Services,Services,Project Consultancy - Policy,16/01/2014,115191,750,Reading Agricultural Consultants Ltd
External Trading Accounts,Industrial Estates,Estates and Economic Development ,Premises related Expenditure,Repairs Alterations & Maintenance of Buildings,Planned Maintenance - Non Est,16/01/2014,115558,"1,470.00",Rentokil Initial Uk Ltd
Cultural & Related,Culture & Heritage,Community and Leisure ,Supplies & Services,Miscellaneous Expenses,Booking Of Acts,23/01/2014,116250,"1,331.34",Richard Bucknall Management
Central Services to the Public,Management & Support Services,IT,Supplies & Services,Services,Project Consultancy - Systems,16/01/2014,115196,"1,800.00",Richmond Systems
Central Services to the Public,Management & Support Services,Chief Executive's,Supplies & Services,"Printing, Stationery & General Office Expenses",Photocopying Allocation,30/01/2014,116279,900.15,Ricoh Uk Ltd
Central Services to the Public,Management & Support Services,Chief Executive's,Supplies & Services,"Equipment, Furniture & Materials",Equipment Lease Rentals,30/01/2014,116246,713.34,Ricoh Uk Ltd
Central Services to the Public,Local Tax Collection,Revenues,Supplies & Services,"Equipment, Furniture & Materials",Equipment Lease Rentals,09/01/2014,114804,174.94,Ricoh Uk Ltd
Central Services to the Public,Management & Support Services,Legal & Democratic,Supplies & Services,"Printing, Stationery & General Office Expenses",Photocopying Costs,30/01/2014,116274,171.09,Ricoh Uk Ltd
Central Services,Corporate & Democratic Core,Corporate & Democratic,Supplies & Services,"Printing, Stationery & General Office Expenses",Photocopying Allocation,30/01/2014,116274,171.09,Ricoh Uk Ltd
Central Services to the Public,Management & Support Services,Legal & Democratic,Supplies & Services,"Printing, Stationery & General Office Expenses",Internal Printing ,30/01/2014,116274,171.08,Ricoh Uk Ltd
Central Services to the Public,Local Tax Collection,Revenues,Supplies & Services,"Equipment, Furniture & Materials",Equipment Lease Rentals,09/01/2014,114804,109.34,Ricoh Uk Ltd
Housing Services,Housing Benefits ,Revenues,Supplies & Services,"Equipment, Furniture & Materials",Equipment Lease Rentals,09/01/2014,114804,109.33,Ricoh Uk Ltd
Central Services to the Public,Local Tax Collection,Revenues,Supplies & Services,"Equipment, Furniture & Materials",Equipment Lease Rentals,09/01/2014,114804,43.73,Ricoh Uk Ltd
Planning & Development,Development Control,Planning & Building,Supplies & Services,Miscellaneous Expenses,Planning Appeal Costs,02/01/2014,113972,"4,500.00",Cornerstone Barristers
Planning & Development,Development Control,Planning & Building,Supplies & Services,Services,Legal Fees,02/01/2014,114435,"1,600.00",Personal data - Data Protection Act 1998
Cultural & Related,Culture & Heritage,Community and Leisure ,Third Party Payments,Private contractors,Main Contractor Costs,09/01/2014,114771,"31,968.17",Rocon Contractors Ltd
"Highways, Roads & Transport",Public Transport,Plan Pol & Transport,Third Party Payments,Transport Operators in Respect of Concessionary Fares,Voluntary Orgs Reimbursement,09/01/2014,114929,"1,370.50",Romsey Good Neighbours
Planning & Development,Economic Development,Estates and Economic Development ,Supplies & Services,Grants & Subscriptions,Grants,09/01/2014,114938,"3,082.00",Romsey Town Council
Central Services to the Public,Local Tax Collection,Revenues,Supplies & Services,Services,Professional Fees,30/01/2014,116828,16.14,Ross & Roberts
Central Services to the Public,Elections,Legal & Democratic,Supplies & Services,"Printing, Stationery & General Office Expenses",Postage Costs,16/01/2014,115228,570,Royal Mail
Central Services to the Public,Local Tax Collection,Revenues,Supplies & Services,"Printing, Stationery & General Office Expenses",Postage Costs,30/01/2014,116294,437.6,Royal Mail
Central Services to the Public,Local Tax Collection,Revenues,Supplies & Services,"Printing, Stationery & General Office Expenses",Postage Costs,09/01/2014,114632,436.22,Royal Mail
Housing Services,Housing Benefits ,Revenues,Supplies & Services,"Printing, Stationery & General Office Expenses",Postage Costs,09/01/2014,114632,263.39,Royal Mail
Central Services to the Public,Local Tax Collection,Revenues,Supplies & Services,"Printing, Stationery & General Office Expenses",Postage Costs,09/01/2014,114632,263.39,Royal Mail
Housing Services,Housing Benefits ,Revenues,Supplies & Services,"Printing, Stationery & General Office Expenses",Postage Costs,30/01/2014,116294,133.41,Royal Mail
Central Services to the Public,Local Tax Collection,Revenues,Supplies & Services,"Printing, Stationery & General Office Expenses",Postage Costs,30/01/2014,116294,133.4,Royal Mail
Central Services to the Public,Local Tax Collection,Revenues,Supplies & Services,"Printing, Stationery & General Office Expenses",Postage Costs,09/01/2014,114632,68.7,Royal Mail
Central Services to the Public,Local Tax Collection,Revenues,Supplies & Services,"Printing, Stationery & General Office Expenses",Postage Costs,30/01/2014,116294,28.66,Royal Mail
Environmental & Regulatory,Regulatory Services,Housing and Environmental Health ,Supplies & Services,Grants and subscriptions,Capital Grants,16/01/2014,115574,"4,075.10",S & J Building Services (Uk) Ltd
Cultural & Related,Open Spaces,Community and Leisure ,Premises related Expenditure,Repairs Alterations & Maintenance of Buildings,Estates premises costs - AMP,16/01/2014,115164,510,Scott White & Hookins
Central Services to the Public,Management & Support Services,Plan Pol & Transport,Premises related Expenditure,Repairs Alterations & Maintenance of Buildings,General Repairs,09/01/2014,114894,"12,252.16",Signway Supplies (Datchet Ltd)
Environmental & Regulatory,Waste management,Environmental,Employees,Indirect Employee Expenses,Agency Staff - Waged Posts,16/01/2014,114953,547.4,Simple Recruitment Services Ltd
Central Services to the Public,Management & Support Services,IT,Supplies & Services,Services,Project Consultancy - Systems,23/01/2014,115874,850,Solnet
Central Services to the Public,Management & Support Services,Environmental,Supplies & Services,"Equipment, Furniture & Materials",Maintenance Equip + Materials,02/01/2014,113881,655.2,Somers Totalkare Ltd
Planning & Development,Community Development,Community and Leisure ,Supplies & Services,Grants & Subscriptions,Grants,08/01/2014,114843,500,South Central Ambulance Charitable Trust
Environmental & Regulatory,Regulatory Services,Housing and Environmental Health ,Supplies & Services,Miscellaneous Expenses,Other Miscellaneous Costs,02/01/2014,113974,"3,682.48",Southampton City Council
Environmental & Regulatory,Regulatory Services,Housing and Environmental Health ,Supplies & Services,Miscellaneous Expenses,Other Miscellaneous Costs,02/01/2014,113973,"3,110.00",Southampton City Council
Central Services to the Public,Management & Support Services,Community and Leisure ,Supplies & Services,Grants & Subscriptions,Grants,22/01/2014,115555,"1,000.00",Southampton Rape Crisis
Environmental & Regulatory,Regulatory Services,Estates and Economic Development ,Premises related Expenditure,Water Services,Water And Sewerage Charges,30/01/2014,116613,"3,035.45",Southern Water
Cultural & Related,Open Spaces,Environmental,Premises related Expenditure,Water Services,Water And Sewerage Charges,09/01/2014,114000,"2,507.28",Southern Water
Cultural & Related,Culture & Heritage,Estates and Economic Development ,Premises related Expenditure,Water Services,Water And Sewerage Charges,30/01/2014,116914,"1,415.01",Southern Water
Cultural & Related,Open Spaces,Environmental,Premises related Expenditure,Water Services,Water And Sewerage Charges,23/01/2014,115452,910.72,Southern Water
Cultural & Related,Open Spaces,Environmental,Premises related Expenditure,Water Services,Water And Sewerage Charges,30/01/2014,116585,782.13,Southern Water
Cultural & Related,Culture & Heritage,Estates and Economic Development ,Premises related Expenditure,Water Services,Water And Sewerage Charges,16/01/2014,115438,524.43,Southern Water
Environmental & Regulatory,Regulatory Services,Estates and Economic Development ,Premises related Expenditure,Water Services,Water And Sewerage Charges,30/01/2014,116913,509.39,Southern Water
Cultural & Related,Open Spaces,Environmental,Premises related Expenditure,Water Services,Water And Sewerage Charges,30/01/2014,116818,"-2,328.17",Southern Water
Cultural & Related,Open Spaces,Environmental,Transport Related Expenditure,Direct Transport Costs,Repair Materials,02/01/2014,114080,"1,154.77",Spaldings (Uk) Limited
Cultural & Related,Culture & Heritage,Community and Leisure ,Premises related Expenditure,Energy Costs,Electricity,16/01/2014,115453,"1,208.34",Sparsholt College Hampshire
Cultural & Related,Culture & Heritage,Community and Leisure ,Premises related Expenditure,Energy Costs,Gas,16/01/2014,115453,"1,122.64",Sparsholt College Hampshire
Cultural & Related,Culture & Heritage,Community and Leisure ,Premises related Expenditure,Water Services,Water And Sewerage Charges,16/01/2014,115453,254.34,Sparsholt College Hampshire
Central Services to the Public,Management & Support Services,Plan Pol & Transport,Supplies & Services,"Equipment, Furniture & Materials",Purchase Equip + Materials,09/01/2014,114677,"18,814.30",Sse Contracting Ltd
Planning & Development,Economic Development,Estates and Economic Development ,Supplies & Services,Grants & Subscriptions,Grants,22/01/2014,116141,500,St John Catering T/A The Copper Kettle Cafe
Central Services to the Public,Management & Support Services,Plan Pol & Transport,Supplies & Services,Miscellaneous Expenses,S106 Funded Projects,29/01/2014,115905,"25,000.00",Stagecoach South
Cultural & Related,Recreation & Sport,Community and Leisure ,Supplies & Services,Services,Coaches Fees,16/01/2014,113532,640,Starfish
Environmental & Regulatory,Regulatory Services,Housing and Environmental Health ,Supplies & Services,Grants and subscriptions,Capital Grants,09/01/2014,114944,"3,648.13",Studio Four Architects Ltd
Planning & Development,Development Control,Planning & Building,Supplies & Services,"Printing, Stationery & General Office Expenses",Stationery,16/01/2014,115177,917.83,Supplies Team Ltd
Planning & Development,Development Control,Planning & Building,Supplies & Services,"Printing, Stationery & General Office Expenses",Print Consumables,16/01/2014,115177,245,Supplies Team Ltd
Cultural & Related,Culture & Heritage,Estates and Economic Development ,Supplies & Services,"Equipment, Furniture & Materials",Purchase Equip + Materials,16/01/2014,115180,216.46,Supplies Team Ltd
Central Services to the Public,Management & Support Services,Estates and Economic Development ,Supplies & Services,"Printing, Stationery & General Office Expenses",Stationery,16/01/2014,115180,125.72,Supplies Team Ltd
Cultural & Related,Culture & Heritage,Estates and Economic Development ,Supplies & Services,Catering,Non-Contract Catering,16/01/2014,115180,117.84,Supplies Team Ltd
Cultural & Related,Culture & Heritage,Estates and Economic Development ,Supplies & Services,"Printing, Stationery & General Office Expenses",Stationery,16/01/2014,115180,1.37,Supplies Team Ltd
Cultural & Related,Recreation & Sport,Community and Leisure ,Third Party Payments,Private contractors,Main Contractor Costs,30/01/2014,115384,"18,858.22",Sutcliffe Play Ltd
Cultural & Related,Recreation & Sport,Community and Leisure ,Third Party Payments,Private contractors,Main Contractor Costs,30/01/2014,113874,"13,632.51",Sutcliffe Play Ltd
Cultural & Related,Culture & Heritage,Community and Leisure ,Supplies & Services,Miscellaneous Expenses,Booking Of Acts,09/01/2014,114654,"5,254.66",Sweeney Entertainments
Cultural & Related,Culture & Heritage,Community and Leisure ,Supplies & Services,Miscellaneous Expenses,Booking Of Acts,23/01/2014,115593,"1,396.66",Sweeney Entertainments
Environmental & Regulatory,Street Cleansing (not chargeable to Highways),Environmental,Supplies & Services,"Equipment, Furniture & Materials",Purchase Equip + Materials,23/01/2014,115210,908.5,Sweeperhire
Cultural & Related,Open Spaces,Environmental,Transport Related Expenditure,Direct Transport Costs,Repair Materials,23/01/2014,115859,"2,974.58",T H White Ltd
Cultural & Related,Open Spaces,Environmental,Transport Related Expenditure,Contract Hire and Operating Leases,Vehicles-Hired\Leased,23/01/2014,114621,-545,T H White Ltd
Central Services to the Public,Housing Benefits ,Revenues,Supplies & Services,Grants & Subscriptions,Subscriptions,30/01/2014,116903,"1,872.00",Tameside Mbc
Environmental & Regulatory,Waste management,Environmental,Supplies & Services,"Printing, Stationery & General Office Expenses",External Printing,08/01/2014,114785,"2,830.00",Taurus Print & Design Ltd
Central Services to the Public,Management & Support Services,Estates and Economic Development ,Premises related Expenditure,Repairs Alterations & Maintenance of Buildings,Planned Maintenance - Non Est,23/01/2014,115598,775,Temple Lifts Ltd
Cultural & Related,Recreation & Sport,Community and Leisure ,Premises related Expenditure,Repairs Alterations & Maintenance of Buildings,Planned Maintenance - Non Est,23/01/2014,115598,775,Temple Lifts Ltd
External Trading Accounts,Industrial Estates,Estates and Economic Development ,Premises related Expenditure,Repairs Alterations & Maintenance of Buildings,Planned Maintenance - Non Est,23/01/2014,115598,193.75,Temple Lifts Ltd
Cultural & Related,Culture & Heritage,Estates and Economic Development ,Premises related Expenditure,Repairs Alterations & Maintenance of Buildings,Planned Maintenance - Non Est,23/01/2014,115598,193.75,Temple Lifts Ltd
Cultural & Related,Recreation & Sport,Community and Leisure ,Premises related Expenditure,Repairs Alterations & Maintenance of Buildings,Planned Maintenance - Non Est,23/01/2014,115598,193.75,Temple Lifts Ltd
Cultural & Related,Tourism,Estates and Economic Development ,Premises related Expenditure,Repairs Alterations & Maintenance of Buildings,Planned Maintenance - Non Est,23/01/2014,115598,18.75,Temple Lifts Ltd
Cultural & Related,Culture & Heritage,Estates and Economic Development ,Premises related Expenditure,Repairs Alterations & Maintenance of Buildings,Planned Maintenance - Non Est,23/01/2014,115598,18.75,Temple Lifts Ltd
Environmental & Regulatory,Waste management,Environmental,Transport Related Expenditure,Direct Transport Costs,Repair Materials,23/01/2014,115531,426.91,Terberg Matec Uk Limited
Cultural & Related,Recreation & Sport,Community and Leisure ,Premises related Expenditure,Grounds Maintenance Costs,Gm - Additional Works,16/01/2014,115391,"2,450.00",Tgn Construction Ltd T/A Bike Track
Central Services to the Public,Management & Support Services,Estates and Economic Development ,Supplies & Services,Services,Professional Fees,30/01/2014,116916,"3,650.80",The Genesis Design Studio Ltd
Central Services,Corporate & Democratic Core,Corporate & Democratic,Supplies & Services,Miscellaneous Expenses,Health And Safety,09/01/2014,114769,130,The Health Station Ltd
Central Services,Corporate & Democratic Core,Corporate & Democratic,Supplies & Services,Miscellaneous Expenses,Health And Safety,09/01/2014,114770,130,The Health Station Ltd
Planning & Development,Development Control,Planning & Building,Supplies & Services,Miscellaneous Expenses,Health And Safety,09/01/2014,114770,79.47,The Health Station Ltd
Planning & Development,Development Control,Planning & Building,Supplies & Services,Miscellaneous Expenses,Health And Safety,09/01/2014,114769,70.64,The Health Station Ltd
Central Services to the Public,Management & Support Services,Revenues,Supplies & Services,Miscellaneous Expenses,Health And Safety,09/01/2014,114769,70.64,The Health Station Ltd
Central Services to the Public,Management & Support Services,Revenues,Supplies & Services,Miscellaneous Expenses,Health And Safety,09/01/2014,114770,44.15,The Health Station Ltd
Planning & Development,Planning Policy,Plan Pol & Transport,Supplies & Services,Miscellaneous Expenses,Health And Safety,09/01/2014,114770,44.15,The Health Station Ltd
Central Services to the Public,Management & Support Services,Finance,Supplies & Services,Miscellaneous Expenses,Health And Safety,09/01/2014,114769,35.32,The Health Station Ltd
"Highways, Roads & Transport",Parking Services,Plan Pol & Transport,Supplies & Services,Miscellaneous Expenses,Health And Safety,09/01/2014,114769,35.32,The Health Station Ltd
Central Services to the Public,Management & Support Services,Chief Executive's,Supplies & Services,Miscellaneous Expenses,Health And Safety,09/01/2014,114770,35.32,The Health Station Ltd
Central Services to the Public,Management & Support Services,Finance,Supplies & Services,Miscellaneous Expenses,Health And Safety,09/01/2014,114770,35.32,The Health Station Ltd
Central Services to the Public,Management & Support Services,Chief Executive's,Supplies & Services,Miscellaneous Expenses,Health And Safety,09/01/2014,114769,26.49,The Health Station Ltd
Planning & Development,Planning Policy,Plan Pol & Transport,Supplies & Services,Miscellaneous Expenses,Health And Safety,09/01/2014,114769,26.49,The Health Station Ltd
Central Services to the Public,Management & Support Services,Chief Executive's,Supplies & Services,Miscellaneous Expenses,Health And Safety,09/01/2014,114770,26.49,The Health Station Ltd
Central Services to the Public,Management & Support Services,Estates and Economic Development ,Supplies & Services,Miscellaneous Expenses,Health And Safety,09/01/2014,114770,26.49,The Health Station Ltd
Central Services to the Public,Management & Support Services,Legal & Democratic,Supplies & Services,Miscellaneous Expenses,Health And Safety,09/01/2014,114769,17.66,The Health Station Ltd
Central Services to the Public,Management & Support Services,Legal & Democratic,Supplies & Services,Miscellaneous Expenses,Health And Safety,09/01/2014,114769,17.66,The Health Station Ltd
Environmental & Regulatory,Regulatory Services,Legal & Democratic,Supplies & Services,Miscellaneous Expenses,Health And Safety,09/01/2014,114769,17.66,The Health Station Ltd
Central Services to the Public,Management & Support Services,Chief Executive's,Supplies & Services,Miscellaneous Expenses,Health And Safety,09/01/2014,114769,17.66,The Health Station Ltd
Central Services to the Public,Management & Support Services,Estates and Economic Development ,Supplies & Services,Miscellaneous Expenses,Health And Safety,09/01/2014,114769,17.66,The Health Station Ltd
Environmental & Regulatory,Regulatory Services,Housing and Environmental Health ,Supplies & Services,Miscellaneous Expenses,Health And Safety,09/01/2014,114769,17.66,The Health Station Ltd
Environmental & Regulatory,Regulatory Services,Housing and Environmental Health ,Supplies & Services,Miscellaneous Expenses,Health And Safety,09/01/2014,114769,17.66,The Health Station Ltd
Central Services to the Public,Management & Support Services,Community and Leisure ,Supplies & Services,Miscellaneous Expenses,Health And Safety,09/01/2014,114769,17.66,The Health Station Ltd
Central Services to the Public,Management & Support Services,Legal & Democratic,Supplies & Services,Miscellaneous Expenses,Health And Safety,09/01/2014,114770,17.66,The Health Station Ltd
Central Services to the Public,Management & Support Services,Legal & Democratic,Supplies & Services,Miscellaneous Expenses,Health And Safety,09/01/2014,114770,17.66,The Health Station Ltd
Central Services to the Public,Management & Support Services,Chief Executive's,Supplies & Services,Miscellaneous Expenses,Health And Safety,09/01/2014,114770,17.66,The Health Station Ltd
Central Services to the Public,Management & Support Services,Housing and Environmental Health ,Supplies & Services,Miscellaneous Expenses,Health And Safety,09/01/2014,114770,17.66,The Health Station Ltd
Housing Services,Homelessness,Housing and Environmental Health ,Supplies & Services,Miscellaneous Expenses,Health And Safety,09/01/2014,114770,17.66,The Health Station Ltd
Environmental & Regulatory,Regulatory Services,Housing and Environmental Health ,Supplies & Services,Miscellaneous Expenses,Health And Safety,09/01/2014,114770,17.66,The Health Station Ltd
Central Services to the Public,Management & Support Services,Community and Leisure ,Supplies & Services,Miscellaneous Expenses,Health And Safety,09/01/2014,114770,17.66,The Health Station Ltd
"Highways, Roads & Transport",Parking Services,Plan Pol & Transport,Supplies & Services,Miscellaneous Expenses,Health And Safety,09/01/2014,114770,17.66,The Health Station Ltd
Central Services to the Public,Elections,Legal & Democratic,Supplies & Services,Miscellaneous Expenses,Health And Safety,09/01/2014,114769,8.83,The Health Station Ltd
Central Services to the Public,Management & Support Services,Estates and Economic Development ,Supplies & Services,Miscellaneous Expenses,Health And Safety,09/01/2014,114769,8.83,The Health Station Ltd
Housing Services,"Housing strategy, advice and enabling",Housing and Environmental Health ,Supplies & Services,Miscellaneous Expenses,Health And Safety,09/01/2014,114769,8.83,The Health Station Ltd
Central Services to the Public,Management & Support Services,Housing and Environmental Health ,Supplies & Services,Miscellaneous Expenses,Health And Safety,09/01/2014,114769,8.83,The Health Station Ltd
Housing Services,Homelessness,Housing and Environmental Health ,Supplies & Services,Miscellaneous Expenses,Health And Safety,09/01/2014,114769,8.83,The Health Station Ltd
Environmental & Regulatory,Regulatory Services,Housing and Environmental Health ,Supplies & Services,Miscellaneous Expenses,Health And Safety,09/01/2014,114769,8.83,The Health Station Ltd
Central Services to the Public,Management & Support Services,IT,Supplies & Services,Miscellaneous Expenses,Health And Safety,09/01/2014,114769,8.83,The Health Station Ltd
Central Services to the Public,Management & Support Services,IT,Supplies & Services,Miscellaneous Expenses,Health And Safety,09/01/2014,114769,8.83,The Health Station Ltd
Central Services to the Public,Management & Support Services,IT,Supplies & Services,Miscellaneous Expenses,Health And Safety,09/01/2014,114769,8.83,The Health Station Ltd
Environmental & Regulatory,Regulatory Services,Community and Leisure ,Supplies & Services,Miscellaneous Expenses,Health And Safety,09/01/2014,114769,8.83,The Health Station Ltd
Environmental & Regulatory,Community Safety,Community and Leisure ,Supplies & Services,Miscellaneous Expenses,Health And Safety,09/01/2014,114769,8.83,The Health Station Ltd
"Highways, Roads & Transport",Highways and roads - maintenance,Plan Pol & Transport,Supplies & Services,Miscellaneous Expenses,Health And Safety,09/01/2014,114769,8.83,The Health Station Ltd
Environmental & Regulatory,Waste management,Environmental,Supplies & Services,Miscellaneous Expenses,Health And Safety,09/01/2014,114769,8.83,The Health Station Ltd
Central Services to the Public,Elections,Legal & Democratic,Supplies & Services,Miscellaneous Expenses,Health And Safety,09/01/2014,114770,8.83,The Health Station Ltd
Environmental & Regulatory,Regulatory Services,Legal & Democratic,Supplies & Services,Miscellaneous Expenses,Health And Safety,09/01/2014,114770,8.83,The Health Station Ltd
Environmental & Regulatory,Regulatory Services,Legal & Democratic,Supplies & Services,Miscellaneous Expenses,Health And Safety,09/01/2014,114770,8.83,The Health Station Ltd
Environmental & Regulatory,Regulatory Services,Housing and Environmental Health ,Supplies & Services,Miscellaneous Expenses,Health And Safety,09/01/2014,114770,8.83,The Health Station Ltd
Central Services to the Public,Management & Support Services,IT,Supplies & Services,Miscellaneous Expenses,Health And Safety,09/01/2014,114770,8.83,The Health Station Ltd
Central Services to the Public,Management & Support Services,IT,Supplies & Services,Miscellaneous Expenses,Health And Safety,09/01/2014,114770,8.83,The Health Station Ltd
Environmental & Regulatory,Regulatory Services,Community and Leisure ,Supplies & Services,Miscellaneous Expenses,Health And Safety,09/01/2014,114770,8.83,The Health Station Ltd
Cultural & Related,Open Spaces,Community and Leisure ,Supplies & Services,Miscellaneous Expenses,Health And Safety,09/01/2014,114770,8.83,The Health Station Ltd
Cultural & Related,Culture & Heritage,Community and Leisure ,Supplies & Services,Miscellaneous Expenses,Health And Safety,09/01/2014,114770,8.83,The Health Station Ltd
Environmental & Regulatory,Community Safety,Community and Leisure ,Supplies & Services,Miscellaneous Expenses,Health And Safety,09/01/2014,114770,8.83,The Health Station Ltd
"Highways, Roads & Transport",Highways and roads - maintenance,Plan Pol & Transport,Supplies & Services,Miscellaneous Expenses,Health And Safety,09/01/2014,114770,8.83,The Health Station Ltd
Cultural & Related,Culture & Heritage,Community and Leisure ,Supplies & Services,Miscellaneous Expenses,Booking Of Acts,16/01/2014,115433,"1,435.58",The Jackie Generation
Planning & Development,Economic Development,Estates and Economic Development ,Supplies & Services,Grants & Subscriptions,Grants,08/01/2014,114834,500,The Lunch Box
Central Services to the Public,Management & Support Services,Finance,Supplies & Services,"Printing, Stationery & General Office Expenses",Postage Costs,02/01/2014,114077,"1,398.97",Tnt Post South West Ltd
Central Services to the Public,Management & Support Services,Finance,Supplies & Services,"Printing, Stationery & General Office Expenses",Postage Costs,02/01/2014,113627,"1,157.35",Tnt Post South West Ltd
Central Services to the Public,Management & Support Services,Finance,Supplies & Services,"Printing, Stationery & General Office Expenses",Postage Costs,16/01/2014,114900,"1,021.16",Tnt Post South West Ltd
Central Services to the Public,Management & Support Services,Finance,Supplies & Services,"Printing, Stationery & General Office Expenses",Postage Costs,23/01/2014,115151,741.17,Tnt Post South West Ltd
Central Services to the Public,Management & Support Services,Estates and Economic Development ,Premises related Expenditure,Energy Costs,Gas,23/01/2014,116118,"3,101.73",Total Gas & Power Ltd
Central Services to the Public,Management & Support Services,Estates and Economic Development ,Premises related Expenditure,Energy Costs,Gas,09/01/2014,114640,"2,485.85",Total Gas & Power Ltd
Cultural & Related,Culture & Heritage,Estates and Economic Development ,Premises related Expenditure,Energy Costs,Gas,23/01/2014,116124,851.67,Total Gas & Power Ltd
Central Services to the Public,Management & Support Services,Estates and Economic Development ,Premises related Expenditure,Energy Costs,Gas,09/01/2014,114617,787.42,Total Gas & Power Ltd
Cultural & Related,Culture & Heritage,Estates and Economic Development ,Premises related Expenditure,Energy Costs,Gas,23/01/2014,116119,655.89,Total Gas & Power Ltd
Central Services to the Public,Management & Support Services,Estates and Economic Development ,Premises related Expenditure,Energy Costs,Gas,23/01/2014,116125,608.72,Total Gas & Power Ltd
External Trading Accounts,Industrial Estates,Estates and Economic Development ,Premises related Expenditure,Energy Costs,Gas,23/01/2014,116121,545.78,Total Gas & Power Ltd
Cultural & Related,Culture & Heritage,Estates and Economic Development ,Premises related Expenditure,Energy Costs,Gas,09/01/2014,114638,440.01,Total Gas & Power Ltd
Central Services to the Public,Management & Support Services,Estates and Economic Development ,Premises related Expenditure,Energy Costs,Gas,23/01/2014,116123,433.54,Total Gas & Power Ltd
Environmental & Regulatory,Regulatory Services,Housing and Environmental Health ,Supplies & Services,Grants and subscriptions,Capital Grants,30/01/2014,116926,"3,859.50",Total Hygiene Ltd
Cultural & Related,Tourism,Estates and Economic Development ,Supplies & Services,Miscellaneous Expenses,Advertising,23/01/2014,115216,432,Tourism South East
Central Services to the Public,Management & Support Services,Estates and Economic Development ,Third Party Payments,Other Establishments,Private Contractors,23/01/2014,116109,"46,048.91",Trevor May Contractors Ltd
Planning & Development,Development Control,Planning & Building,Supplies & Services,"Printing, Stationery & General Office Expenses",Training Courses,30/01/2014,116541,"1,950.00",Trevor Roberts Associates
Central Services to the Public,Management & Support Services,Environmental,Supplies & Services,Communications & Computing,Software Maintenance,23/01/2014,115175,"1,240.00",Triscan Systems Ltd
Planning & Development,Development Control,Planning & Building,Supplies & Services,"Printing, Stationery & General Office Expenses",Leasing rentals,02/01/2014,114039,800,Unilink Finance Ltd
Central Services to the Public,Management & Support Services,IT,Supplies & Services,Communications & Computing,Hardware Maintenance,30/01/2014,116578,"2,836.00",Uninterruptible Power Supplies Ltd
Cultural & Related,Recreation & Sport,Community and Leisure ,Third Party Payments,Other Establishments,ALC Management Contract-TVL,09/01/2014,114901,"35,000.00",Valley Leisure Ltd
Cultural & Related,Recreation & Sport,Community and Leisure ,Third Party Payments,Other Establishments,ALC Management Contract-TVL,23/01/2014,115871,"35,000.00",Valley Leisure Ltd
Cultural & Related,Recreation & Sport,Community and Leisure ,Premises related Expenditure,Rents,Premises Hire,23/01/2014,115870,500,Valley Leisure Ltd
Central Services to the Public,Management & Support Services,Estates and Economic Development ,Supplies & Services,Services,Professional Fees,23/01/2014,115914,429.08,Valuation Office Agency
Central Services to the Public,Management & Support Services,Legal & Democratic,Supplies & Services,"Printing, Stationery & General Office Expenses",Training Courses,23/01/2014,116093,470,Veale Wasbrough Vizard
Cultural & Related,Open Spaces,Environmental,Supplies & Services,Miscellaneous Expenses,Waste Collection,16/01/2014,115383,538.85,Veolia Es Hampshire Ltd
Central Services to the Public,Management & Support Services,IT,Supplies & Services,Communications & Computing,Land Line Telephone Charges,02/01/2014,113869,726.11,Virgin Media Payments Ltd
Central Services to the Public,Management & Support Services,IT,Supplies & Services,Communications & Computing,Hardware Maintenance,09/01/2014,107655,"13,857.71",Vodafone Business Services
Central Services to the Public,Management & Support Services,IT,Supplies & Services,Miscellaneous Expenses,Miscellaneous Capital Expenses,09/01/2014,106028,"5,183.84",Vodafone Business Services
Central Services to the Public,Management & Support Services,IT,Supplies & Services,Communications & Computing,Land Line Telephone Charges,09/01/2014,114786,958,Vodafone Business Services
Central Services to the Public,Management & Support Services,IT,Supplies & Services,Communications & Computing,Hardware Maintenance,09/01/2014,113622,"-1,677.21",Vodafone Business Services
Environmental & Regulatory,Regulatory Services,Community and Leisure ,Transport Related Expenditure,Contract Hire and Operating Leases,Officer lease cars,23/01/2014,115596,"3,581.40",Volkswagen Group Leasing
Cultural & Related,Culture & Heritage,Estates and Economic Development ,Premises related Expenditure,Repairs Alterations & Maintenance of Buildings,Building Maint - Non Estates,23/01/2014,116260,521.25,Vp Bastion Limited
"Highways, Roads & Transport",Public Transport,Plan Pol & Transport,Third Party Payments,Transport Operators in Respect of Concessionary Fares,Voluntary Orgs Reimbursement,22/01/2014,116144,746.55,Wallop Good Neighbours
Cultural & Related,Culture & Heritage,Community and Leisure ,Supplies & Services,Miscellaneous Expenses,Booking Of Acts,23/01/2014,116227,"3,637.00",Warren Productions
Cultural & Related,Open Spaces,Community and Leisure ,Premises related Expenditure,Grounds Maintenance Costs,Gm - Additional Works,23/01/2014,115992,480,Water Plant Ltd
Central Services to the Public,Management & Support Services,Environmental,Transport Related Expenditure,Direct Transport Costs,Diesel,23/01/2014,115929,"5,162.48",Wessex Petroleum Limited
Central Services to the Public,Management & Support Services,Environmental,Transport Related Expenditure,Direct Transport Costs,Diesel,09/01/2014,114800,"4,969.80",Wessex Petroleum Limited
Central Services to the Public,Management & Support Services,Environmental,Transport Related Expenditure,Direct Transport Costs,Diesel,16/01/2014,115154,"4,561.93",Wessex Petroleum Limited
Central Services to the Public,Management & Support Services,Environmental,Transport Related Expenditure,Direct Transport Costs,Diesel,23/01/2014,115585,"4,493.09",Wessex Petroleum Limited
Central Services to the Public,Management & Support Services,Environmental,Transport Related Expenditure,Direct Transport Costs,Diesel,02/01/2014,113995,"4,450.40",Wessex Petroleum Limited
Central Services to the Public,Management & Support Services,Environmental,Transport Related Expenditure,Direct Transport Costs,Diesel,23/01/2014,115953,"4,343.70",Wessex Petroleum Limited
Central Services to the Public,Management & Support Services,Environmental,Transport Related Expenditure,Direct Transport Costs,Diesel,16/01/2014,115155,"3,941.16",Wessex Petroleum Limited
Central Services to the Public,Management & Support Services,Environmental,Transport Related Expenditure,Direct Transport Costs,Diesel,02/01/2014,113994,"3,340.20",Wessex Petroleum Limited
Central Services to the Public,Management & Support Services,Environmental,Transport Related Expenditure,Direct Transport Costs,Diesel,09/01/2014,114788,"3,313.20",Wessex Petroleum Limited
Central Services to the Public,Management & Support Services,Environmental,Transport Related Expenditure,Direct Transport Costs,Diesel,23/01/2014,115220,"2,230.74",Wessex Petroleum Limited
Central Services to the Public,Management & Support Services,Environmental,Transport Related Expenditure,Direct Transport Costs,Diesel,23/01/2014,115221,"2,033.62",Wessex Petroleum Limited
Central Services to the Public,Management & Support Services,Environmental,Transport Related Expenditure,Direct Transport Costs,Red Derv,09/01/2014,114788,332.67,Wessex Petroleum Limited
Central Services to the Public,Management & Support Services,Environmental,Transport Related Expenditure,Direct Transport Costs,Red Derv,23/01/2014,115953,310.5,Wessex Petroleum Limited
Central Services to the Public,Management & Support Services,Environmental,Transport Related Expenditure,Direct Transport Costs,Red Derv,09/01/2014,114800,203.3,Wessex Petroleum Limited
Central Services to the Public,Management & Support Services,Estates and Economic Development ,Third Party Payments,Other Establishments,Private Contractors,16/01/2014,115562,"4,366.38",Wessex Window Systems Plc
Central Services to the Public,Management & Support Services,Estates and Economic Development ,Third Party Payments,Other Establishments,Private Contractors,16/01/2014,115561,"3,381.11",Wessex Window Systems Plc
Central Services to the Public,Housing Benefits ,Revenues,Employees,Direct Employee Expenses,Shared service staffing costs,30/01/2014,116809,"12,107.22",Winchester City Council
Central Services to the Public,Management & Support Services,Revenues,Employees,Direct Employee Expenses,Shared service staffing costs,23/01/2014,116090,"9,265.00",Winchester City Council
Planning & Development,Community Development,Community and Leisure ,Employees,Indirect Employee Expenses,Temporary Staff,23/01/2014,115431,"5,109.00",Winchester City Council
Central Services to the Public,Management & Support Services,IT,Supplies & Services,"Equipment, Furniture & Materials",Purchase Equip + Materials,30/01/2014,116584,"2,224.25",Xerox (Uk) Ltd
Central Services to the Public,Management & Support Services,IT,Supplies & Services,"Equipment, Furniture & Materials",Purchase Equip + Materials,23/01/2014,115885,"1,522.21",Xerox (Uk) Ltd
Central Services to the Public,Management & Support Services,IT,Supplies & Services,"Equipment, Furniture & Materials",Equipment Hire,23/01/2014,115886,551.25,Xerox (Uk) Ltd
Central Services to the Public,Management & Support Services,IT,Supplies & Services,"Equipment, Furniture & Materials",Purchase Equip + Materials,23/01/2014,115886,332.24,Xerox (Uk) Ltd
Central Services to the Public,Management & Support Services,IT,Supplies & Services,"Equipment, Furniture & Materials",Purchase Equip + Materials,30/01/2014,116595,"-1,522.21",Xerox (Uk) Ltd
Central Services to the Public,Elections,Legal & Democratic,Supplies & Services,Communications & Computing,Computer Software,16/01/2014,115172,"1,500.00",Xpress Software Solutions Ltd
